bitfinex-derivatives/quotes_SOLF0:USTF0_20241222
["timestamp","ask_amount","ask_price","bid_price","bid_amount"]
[1734904269244,2.7663,180.9,180.86,5.7068]
[1734904269450,2.94,180.96,180.82,2.94]
[1734904269644,1.6382,180.95,180.82,2.94]
[1734904269852,2.7667,180.88,180.84,2.7671]
[1734904270348,2.7667,180.88,180.82,2.94]
[1734904270555,1.6382,180.95,180.82,2.94]
[1734904270849,1.6382,180.95,180.8,22.78918601]
[1734904271050,21.19388601,180.94,180.8,1.5953]
[1734904271257,21.19388601,180.91,180.78,110.52808761]
[1734904271554,2.767,180.85,180.78,110.52808761]
[1734904271751,2.94,180.86,180.78,110.52808761]
[1734904272356,2.7672,180.84,180.78,113.29618761]
[1734904272546,2.94,180.86,180.78,113.29618761]
[1734904272752,2.94,180.86,180.78,2.7681]
[1734904272951,2.7676,180.82,180.78,2.7681]
[1734904273461,2.7676,180.82,180.79,2.7679]
[1734904274055,1.6367,180.89,180.76,21.19388601]
[1734904274260,4.5767,180.89,180.76,21.19388601]
[1734904274860,2.7675,180.83,180.79,2.7678]
[1734904275061,2.7675,180.83,180.76,21.19388601]
[1734904275559,2.7675,180.83,180.79,2.7679]
[1734904276568,2.7672,180.85,180.8,2.7678]
[1734904276854,4.5767,180.89,180.76,21.19388601]
[1734904277159,2.7671,180.85,180.81,2.7675]
[1734904277457,4.5767,180.89,180.8,2.9]
[1734904277650,2.7668,180.87,180.83,2.7672]
[1734904277852,2.94,180.89,180.8,2.9]
[1734904278053,2.9,180.92,180.81,1.6183]
[1734904278458,2.7667,180.88,180.84,2.7671]
[1734904278855,2.9,180.92,180.81,1.6183]
[1734904279060,2.7666,180.88,180.84,2.7671]
[1734904281262,2.7666,180.88,180.85,2.767]
[1734904283363,2.9,180.92,180.79,2.9]
[1734904283563,21.19388601,180.91,180.79,2.9]
[1734904283871,2.7673,180.84,180.8,2.7678]
[1734904284269,21.19388601,180.91,180.79,2.9]
[1734904284465,2.7675,180.83,180.79,2.7679]
[1734904284864,2.7675,180.83,180.77,2.9]
[1734904285162,2.7675,180.83,180.8,2.7678]
[1734904285363,2.7671,180.85,180.8,2.7678]
[1734904285557,2.9,180.87,180.8,2.7678]
[1734904285967,2.7673,180.84,180.8,2.7678]
[1734904286364,2.9,180.87,180.8,2.7678]
[1734904286566,2.7674,180.83,180.8,2.7678]
[1734904291477,2.9,180.82,180.73,90.81108783]
[1734904291671,2.9,180.81,180.73,90.81108783]
[1734904292174,21.19388601,180.79,180.73,90.81108783]
[1734904292381,3.27,180.78,180.69,90.81108783]
[1734904292675,2.769,180.73,180.69,90.81108783]
[1734904293076,2.769,180.73,180.69,93.58048783]
[1734904293279,2.769,180.73,180.69,2.7694]
[1734904294377,2.7692,180.72,180.66,79.71258933]
[1734904294775,2.7692,180.72,180.68,2.7695]
[1734904294967,2.7689,180.73,180.66,76.81258933]
[1734904295371,21.19388601,180.76,180.66,76.81258933]
[1734904295573,22.94228601,180.76,180.62,98.56660184]
[1734904295772,22.94228601,180.76,180.62,95.66660184]
[1734904296176,22.94228601,180.76,180.62,4.85551401]
[1734904296370,22.94228601,180.76,180.63,2.7704]
[1734904297374,21.19388601,180.73,180.63,2.7704]
[1734904297580,2.9,180.72,180.62,7.62611401]
[1734904297877,2.7699,180.67,180.62,7.62611401]
[1734904298072,2.9,180.72,180.62,4.85551401]
[1734904298272,21.19388601,180.7,180.57,90.81108783]
[1734904298471,2.7709,180.6,180.55,95.41008783]
[1734904298870,2.7709,180.6,180.56,2.7714]
[1734904299069,1.6839,180.68,180.55,95.41008783]
[1734904299375,2.9,180.68,180.62,2.7706]
[1734904299580,2.7695,180.69,180.6,24.09388601]
[1734904300180,88.25158463,180.73,180.6,24.09388601]
[1734904300383,2.7699,180.67,180.6,24.09388601]
[1734904300886,88.25158463,180.73,180.6,24.09388601]
[1734904301278,88.25158463,180.73,180.61,1.5992]
[1734904301685,88.25158463,180.73,180.62,1.7176]
[1734904302184,2.7693,180.71,180.62,3.3203]
[1734904302384,88.25158463,180.73,180.62,3.3203]
[1734904302883,2.7695,180.7,180.65,2.77]
[1734904303182,88.25158463,180.73,180.65,2.77]
[1734904304583,2.7695,180.7,180.65,2.77]
[1734904305289,2.7695,180.7,180.66,2.77]
[1734904305482,4.5764,180.77,180.64,2.9]
[1734904305982,2.769,180.73,180.64,2.9]
[1734904306678,2.769,180.73,180.68,2.7695]
[1734904306878,2.7687,180.74,180.66,21.19388601]
[1734904307185,4.5764,180.77,180.66,21.19388601]
[1734904307384,2.7695,180.7,180.64,2.9]
[1734904307683,4.5764,180.77,180.66,2.7698]
[1734904307884,2.7693,180.71,180.66,2.7698]
[1734904308080,2.7693,180.71,180.64,2.9]
[1734904308779,4.5764,180.77,180.64,2.9]
[1734904308978,4.5764,180.77,180.68,2.7696]
[1734904309785,4.5764,180.77,180.7,2.7693]
[1734904310579,2.7688,180.74,180.71,2.7691]
[1734904310786,1.5833,180.78,180.66,21.19388601]
[1734904310984,1.5833,180.78,180.67,2.86]
[1734904311890,2.7686,180.75,180.71,2.7691]
[1734904312078,1.5833,180.78,180.67,2.86]
[1734904312883,1.7054,180.77,180.67,2.86]
[1734904313281,1.7054,180.77,180.68,2.7698]
[1734904314487,2.7693,180.73,180.68,2.7698]
[1734904314691,1.7054,180.77,180.68,2.7698]
[1734904314991,2.7694,180.72,180.68,2.7698]
[1734904316692,2.7694,180.72,180.69,2.7697]
[1734904316892,2.7694,180.72,180.65,2.86]
[1734904317286,1.7054,180.77,180.65,2.86]
[1734904317590,2.7692,180.71,180.67,2.7698]
[1734904317793,1.7054,180.77,180.66,2.86]
[1734904317992,2.7688,180.74,180.7,2.7693]
[1734904318191,1.7054,180.77,180.7,2.7693]
[1734904318790,2.7686,180.75,180.7,2.7693]
[1734904319094,1.7054,180.77,180.7,2.7693]
[1734904319493,1.7054,180.77,180.66,2.86]
[1734904320393,1.7054,180.77,180.64,3.37493173]
[1734904321393,2.7688,180.74,180.65,2.7701]
[1734904321693,2.86,180.74,180.65,2.7701]
[1734904322597,2.7696,180.68,180.65,2.7701]
[1734904322793,2.86,180.74,180.66,2.7699]
[1734904323096,2.7695,180.7,180.66,2.7699]
[1734904323297,2.86,180.74,180.66,2.7699]
[1734904323794,2.7696,180.69,180.66,2.7699]
[1734904325393,2.7699,180.66,180.64,6.14513173]
[1734904325599,2.86,180.69,180.64,3.37493173]
[1734904325793,2.86,180.7,180.64,3.37493173]
[1734904326491,2.7701,180.65,180.64,3.37493173]
[1734904327097,2.86,180.65,180.57,110.52808761]
[1734904327299,2.44152,180.58,180.57,110.52808761]
[1734904327800,2.7717,180.55,180.53,90.81108783]
[1734904327994,2.86,180.65,180.53,90.81108783]
[1734904328401,2.7716,180.56,180.53,90.81108783]
[1734904329107,2.7716,180.56,180.51,23.96598601]
[1734904329801,2.7716,180.56,180.51,26.82598601]
[1734904330005,2.7717,180.55,180.51,26.82598601]
[1734904330600,2.7715,180.56,180.51,26.82598601]
[1734904330796,2.7715,180.56,180.51,24.05388601]
[1734904331101,2.86,180.62,180.51,24.05388601]
[1734904331292,2.86,180.63,180.51,24.05388601]
[1734904331492,2.86,180.63,180.54,2.7717]
[1734904331901,2.86,180.63,180.51,24.05388601]
[1734904332100,2.86,180.63,180.54,21.19388601]
[1734904332495,2.771,180.6,180.56,2.7714]
[1734904335307,2.7706,180.62,180.57,2.7712]
[1734904335509,2.7706,180.62,180.56,2.86]
[1734904336308,2.7706,180.62,180.58,2.7711]
[1734904338412,2.7709,180.6,180.57,2.7713]
[1734904339005,2.7707,180.61,180.57,2.7713]
[1734904339202,2.86,180.67,180.55,2.7715]
[1734904339507,2.86,180.67,180.52,2.86]
[1734904340511,2.86,180.67,180.53,2.86]
[1734904340804,2.86,180.67,180.51,21.19388601]
[1734904341011,2.7716,180.56,180.51,24.05388601]
[1734904341514,2.86,180.6,180.51,24.05388601]
[1734904341707,2.86,180.63,180.51,24.05388601]
[1734904341912,4.9917,180.69,180.54,21.19388601]
[1734904342112,2.86,180.68,180.54,21.19388601]
[1734904343111,2.7707,180.62,180.58,2.7711]
[1734904343502,2.7707,180.62,180.56,2.86]
[1734904343702,2.86,180.68,180.56,2.86]
[1734904343903,2.7704,180.64,180.56,2.86]
[1734904344210,2.86,180.68,180.59,2.7709]
[1734904344412,2.7705,180.63,180.59,2.7709]
[1734904344914,2.86,180.68,180.57,2.7712]
[1734904345114,2.7706,180.62,180.56,2.86]
[1734904345512,2.7706,180.62,180.58,2.771]
[1734904345713,2.7704,180.63,180.56,2.86]
[1734904346413,2.7704,180.63,180.59,2.7709]
[1734904347113,2.7704,180.63,180.6,2.7709]
[1734904347512,2.7704,180.63,180.56,2.86]
[1734904348013,2.7704,180.63,180.59,2.7709]
[1734904348214,2.7703,180.64,180.56,2.86]
[1734904348518,2.86,180.67,180.56,2.86]
[1734904348720,2.7704,180.63,180.56,2.86]
[1734904348918,2.86,180.67,180.56,2.86]
[1734904349717,2.86,180.67,180.59,2.771]
[1734904350226,2.7705,180.63,180.59,2.771]
[1734904352028,2.7705,180.62,180.59,2.771]
[1734904352526,2.77,180.66,180.6,13.25593781]
[1734904352726,3.3128,180.69,180.6,13.25593781]
[1734904352930,3.3128,180.69,180.63,13.25593781]
[1734904353129,2.7701,180.65,180.63,13.25593781]
[1734904354427,3.3128,180.69,180.63,13.25593781]
[1734904354625,3.3128,180.69,180.61,2.7707]
[1734904354626,2.7702,180.64,180.61,2.7707]
[1734904354828,3.3128,180.69,180.6,13.25593781]
[1734904355926,1.7136,180.73,180.58,2.86]
[1734904355927,4.5736,180.73,180.63,13.25593781]
[1734904356127,4.5736,180.73,180.63,16.11593781]
[1734904356329,2.7695,180.69,180.66,2.7698]
[1734904356724,4.5736,180.73,180.63,16.11593781]
[1734904356924,2.7693,180.7,180.67,2.7697]
[1734904357421,4.5736,180.73,180.66,16.02583781]
[1734904357626,4.5736,180.73,180.66,2.7699]
[1734904358021,4.5736,180.73,180.63,16.11593781]
[1734904358229,2.7697,180.68,180.65,2.7701]
[1734904362327,4.5736,180.73,180.66,16.02573781]
[1734904362728,2.7694,180.7,180.66,16.02573781]
[1734904363435,2.7694,180.7,180.66,2.7698]
[1734904363734,4.5736,180.73,180.65,2.7701]
[1734904364633,2.7696,180.69,180.65,2.7701]
[1734904366336,2.7693,180.71,180.66,13.25593781]
[1734904366737,2.7693,180.71,180.66,16.11593781]
[1734904366944,1.7228,180.82,180.69,13.25593781]
[1734904367229,1.7228,180.82,180.72,13.25593781]
[1734904367230,3.4114,180.82,180.72,13.25593781]
[1734904367435,2.7678,180.8,180.75,16.02433781]
[1734904367638,2.7678,180.8,180.75,13.25593781]
[1734904367931,3.4114,180.82,180.78,2.768]
[1734904367932,2.7675,180.82,180.78,2.768]
[1734904368137,2.7675,180.82,180.75,13.25593781]
[1734904368637,2.86,180.83,180.78,13.25593781]
[1734904368638,2.7674,180.83,180.78,13.25593781]
[1734904368837,1.6886,180.87,180.78,13.25593781]
[1734904369038,4.5757,180.9,180.81,13.25593781]
[1734904370139,2.7667,180.87,180.82,2.7675]
[1734904370341,2.86,180.9,180.82,21.15609962]
[1734904370641,2.86,180.93,180.82,21.15609962]
[1734904371836,1.7157,180.94,180.82,21.15609962]
[1734904372039,4.5757,180.94,180.82,21.15609962]
[1734904372635,1.7157,180.94,180.82,21.15609962]
[1734904372839,4.5757,180.94,180.82,21.15609962]
[1734904373439,2.7663,180.9,180.85,2.767]
[1734904374638,4.5757,180.94,180.86,2.7669]
[1734904375233,1.7157,180.94,180.86,2.7669]
[1734904375439,2.7662,180.91,180.86,2.7669]
[1734904375831,2.766,180.92,180.87,2.7666]
[1734904376135,78.75609962,181.02,180.85,24.01609962]
[1734904376337,2.86,180.99,180.88,21.15609962]
[1734904376536,2.7655,180.95,180.9,2.7662]
[1734904376834,3.2385,181.0,180.88,21.15609962]
[1734904377036,3.2385,181.0,180.91,21.15609962]
[1734904377733,3.2385,181.0,180.9,2.86]
[1734904378240,2.7653,180.97,180.88,23.92269962]
[1734904378538,3.2385,181.0,180.88,21.15609962]
[1734904378738,2.7653,180.97,180.89,2.7663]
[1734904378941,3.2385,181.0,180.89,2.7663]
[1734904379139,3.2385,181.0,180.87,2.86]
[1734904379340,2.7663,180.9,180.87,2.86]
[1734904379740,2.7661,180.91,180.87,2.86]
[1734904380841,2.86,180.95,180.84,2.86]
[1734904381037,1.5821,180.94,180.84,2.86]
[1734904382042,2.86,180.95,180.84,2.86]
[1734904382043,2.86,180.97,180.87,21.15609962]
[1734904382639,2.7658,180.94,180.89,2.7664]
[1734904383548,2.86,180.97,180.84,21.15609962]
[1734904383850,2.86,180.97,180.85,2.86]
[1734904384241,2.7664,180.9,180.85,5.6269]
[1734904384445,2.86,180.97,180.85,2.86]
[1734904385544,2.7661,180.91,180.87,2.7667]
[1734904386346,2.7663,180.9,180.86,2.7669]
[1734904387443,2.7663,180.9,180.85,5.627]
[1734904389648,2.7665,180.89,180.85,2.767]
[1734904390642,2.7665,180.89,180.86,2.7669]
[1734904391652,2.7663,180.9,180.86,2.7669]
[1734904392650,21.15609962,180.96,180.83,2.86]
[1734904392953,21.15609962,180.93,180.79,2.86]
[1734904393150,6.2092,180.92,180.79,2.86]
[1734904393452,7.8266,180.92,180.8,6.13984604]
[1734904393647,7.8266,180.92,180.8,3.37214604]
[1734904394046,2.7671,180.85,180.81,2.7676]
[1734904394355,2.7671,180.85,180.8,3.37214604]
[1734904394552,2.7669,180.86,180.82,2.7675]
[1734904398553,13.22391727,180.91,180.8,3.37214604]
[1734904398756,7.8266,180.92,180.82,13.22391727]
[1734904399052,4.9666,180.92,180.82,13.22391727]
[1734904400251,2.7666,180.88,180.84,2.767]
[1734904400853,2.7666,180.88,180.85,2.767]
[1734904401058,2.7664,180.89,180.85,2.767]
[1734904403153,4.9666,180.92,180.84,2.7671]
[1734904403463,4.9666,180.92,180.8,3.37214604]
[1734904403959,2.767,180.86,180.82,2.7675]
[1734904404557,2.7671,180.85,180.82,2.7675]
[1734904404953,4.9666,180.92,180.84,2.7671]
[1734904405260,2.7664,180.9,180.8,24.52337337]
[1734904405453,2.7664,180.9,180.83,21.15122733]
[1734904405649,21.15122733,180.98,180.84,2.86]
[1734904405854,21.15122733,180.98,180.84,4.6067]
[1734904405855,4.5924,180.97,180.84,4.6067]
[1734904406166,2.7658,180.93,180.89,2.7663]
[1734904406351,2.7658,180.93,180.84,6.2117]
[1734904407161,2.7658,180.93,180.86,2.7668]
[1734904407358,2.7658,180.93,180.85,19.88209621]
[1734904407961,4.5924,180.97,180.85,19.88209621]
[1734904408860,4.5924,180.97,180.86,21.15122733]
[1734904409266,4.5924,180.97,180.89,2.7664]
[1734904409459,4.5924,180.97,180.86,21.15122733]
[1734904410059,2.7659,180.93,180.88,2.7664]
[1734904411068,2.7659,180.93,180.89,2.7664]
[1734904411256,2.7659,180.93,180.86,21.15122733]
[1734904411456,2.7659,180.93,180.88,2.7666]
[1734904411758,2.7659,180.93,180.86,21.15122733]
[1734904412156,2.7659,180.93,180.89,2.7663]
[1734904412455,2.7659,180.93,180.86,21.15122733]
[1734904413563,2.7659,180.93,180.89,2.7663]
[1734904415377,2.86,180.97,180.86,21.15122733]
[1734904415559,2.7657,180.94,180.91,2.7661]
[1734904417968,90.24124348,181.04,180.89,2.86]
[1734904418168,2.86,181.03,180.89,24.01122733]
[1734904418562,2.7649,180.99,180.89,24.01122733]
[1734904418760,2.86,181.03,180.94,2.7656]
[1734904419165,2.7652,180.98,180.95,2.7655]
[1734904419771,2.7646,181.01,180.98,2.765]
[1734904419966,93.10124348,181.04,180.98,2.765]
[1734904420362,90.24124348,181.04,180.95,21.15122733]
[1734904420567,1.7204,181.1,180.94,2.86]
[1734904420870,1.7204,181.1,181.0,21.15122733]
[1734904421067,1.7204,181.1,181.02,2.7643]
[1734904422373,2.86,181.11,181.03,2.7642]
[1734904422964,2.86,181.11,181.0,13.19469089]
[1734904423469,2.7636,181.08,181.0,13.19469089]
[1734904423668,2.86,181.11,181.01,2.7645]
[1734904424870,2.86,181.11,180.93,4.9902]
[1734904424871,13.19469089,181.09,180.97,13.19469089]
[1734904425075,1.5852,181.08,180.98,2.86]
[1734904426075,2.764,181.05,180.99,2.7649]
[1734904426277,1.5852,181.08,180.99,2.7649]
[1734904426776,2.7644,181.03,180.99,2.7649]
[1734904427073,1.5852,181.08,180.99,2.7649]
[1734904427775,13.19469089,181.06,180.94,13.19469089]
[1734904427976,2.86,181.05,180.94,13.19469089]
[1734904428175,2.7651,180.98,180.94,15.96029089]
[1734904428766,2.7651,180.98,180.95,2.7655]
[1734904428972,2.7651,180.98,180.94,13.19469089]
[1734904429171,2.7652,180.97,180.94,13.19469089]
[1734904429370,2.7652,180.97,180.94,15.96029089]
[1734904430175,2.7652,180.97,180.94,2.7656]
[1734904430774,6.1384,181.05,180.93,3.3753]
[1734904431077,6.1384,181.05,180.93,24.50420776]
[1734904431375,6.1384,181.05,180.96,2.7652]
[1734904431376,2.7647,181.01,180.96,2.7652]
[1734904432375,2.7648,181.0,180.96,2.7652]
[1734904432576,3.2784,181.05,180.97,2.7651]
[1734904432978,2.7646,181.02,180.97,2.86]
[1734904434475,2.7646,181.02,180.99,2.7649]
[1734904436786,2.7642,181.04,181.0,2.7647]
[1734904437981,1.6863,181.05,180.97,2.86]
[1734904438186,1.5852,181.08,181.01,2.7645]
[1734904438485,1.5852,181.08,180.97,2.86]
[1734904438686,2.7644,181.02,180.99,2.7648]
[1734904439982,1.5852,181.08,180.97,2.86]
[1734904440681,2.7644,181.03,180.99,2.7648]
[1734904441385,2.7642,181.04,180.97,2.86]
[1734904441581,1.5852,181.08,180.97,2.86]
[1734904441784,22.71410776,181.08,180.93,21.12890776]
[1734904442478,1.5852,181.08,180.9,113.56939559]
[1734904442680,21.12890776,181.05,180.9,92.44048783]
[1734904442883,21.12890776,181.02,180.9,90.81108783]
[1734904443087,2.7659,180.93,180.89,2.7664]
[1734904443282,2.86,180.97,180.89,2.7664]
[1734904443582,2.86,180.97,180.87,93.57778783]
[1734904443784,1.6425,180.96,180.87,93.57778783]
[1734904443984,1.6425,180.96,180.87,90.81108783]
[1734904444388,2.7662,180.91,180.86,5.6268]
[1734904444687,2.7662,180.91,180.83,21.12890776]
[1734904444688,2.86,180.92,180.83,2.86]
[1734904444987,2.7667,180.88,180.83,2.86]
[1734904445186,2.7667,180.88,180.82,2.86]
[1734904445382,2.7667,180.87,180.83,2.7673]
[1734904446091,2.7667,180.87,180.82,5.6275]
[1734904447184,2.86,180.92,180.83,21.12890776]
[1734904447488,2.86,180.95,180.83,21.12890776]
[1734904448484,2.7661,180.91,180.86,2.7667]
[1734904450985,2.7663,180.9,180.86,2.7667]
[1734904452488,2.86,180.95,180.83,21.12890776]
[1734904452790,2.86,180.95,180.82,2.86]
[1734904453183,2.86,180.95,180.83,2.7672]
[1734904454296,2.7667,180.88,180.84,2.7672]
[1734904454491,2.7667,180.88,180.82,2.86]
[1734904454686,2.86,180.94,180.83,21.12890776]
[1734904454903,2.86,180.94,180.8,24.5010538]
[1734904455190,1.703,180.93,180.8,24.5010538]
[1734904455596,1.6436,180.92,180.82,2.7675]
[1734904456092,1.6436,180.92,180.8,3.37214604]
[1734904456690,2.7665,180.89,180.8,6.13994604]
[1734904456888,2.86,180.89,180.8,6.13994604]
[1734904457085,2.86,180.89,180.8,3.37214604]
[1734904457290,2.86,180.91,180.8,24.5010538]
[1734904458599,2.7666,180.88,180.84,2.7671]
[1734904459194,2.86,180.91,180.82,2.7673]
[1734904459398,2.86,180.91,180.8,24.5010538]
[1734904459995,2.7673,180.84,180.8,27.2687538]
[1734904460901,2.7666,180.88,180.82,2.7674]
[1734904461199,2.86,180.91,180.8,24.5010538]
[1734904461395,2.7666,180.88,180.84,2.7671]
[1734904461596,2.7666,180.88,180.8,24.5010538]
[1734904462298,2.7667,180.88,180.8,24.5010538]
[1734904462490,21.12890776,180.99,180.83,21.12890776]
[1734904462691,6.0646,180.98,180.84,2.86]
[1734904463097,2.7662,180.91,180.87,2.7666]
[1734904463295,6.0646,180.98,180.87,2.7666]
[1734904464402,2.7664,180.9,180.87,2.7666]
[1734904465797,6.0646,180.98,180.88,2.7665]
[1734904465798,2.7661,180.92,180.88,2.7665]
[1734904465997,6.0646,180.98,180.88,2.7665]
[1734904467004,6.0646,180.98,180.85,1.7212]
[1734904467205,1.6337,180.97,180.85,1.7212]
[1734904467606,1.6337,180.97,180.86,21.12890776]
[1734904468001,1.6337,180.97,180.89,2.7664]
[1734904468002,2.7659,180.93,180.89,2.7664]
[1734904468607,1.6337,180.97,180.9,2.7662]
[1734904468802,2.7657,180.94,180.86,21.12890776]
[1734904469001,1.6337,180.97,180.86,21.12890776]
[1734904469201,1.6337,180.97,180.92,2.7659]
[1734904469402,2.7655,180.96,180.92,2.7659]
[1734904470097,1.5855,180.98,180.92,2.7659]
[1734904470297,1.5855,180.98,180.91,2.7661]
[1734904470807,2.7656,180.95,180.91,2.7661]
[1734904471209,2.7656,180.95,180.89,2.86]
[1734904471507,2.7657,180.94,180.91,2.766]
[1734904472208,2.7658,180.93,180.9,2.7662]
[1734904472906,2.7658,180.93,180.89,2.7664]
[1734904473508,2.7658,180.93,180.86,23.98890776]
[1734904473709,2.7658,180.93,180.9,2.7662]
[1734904474210,2.7657,180.94,180.91,2.7661]
[1734904474707,2.86,181.0,180.89,21.12890776]
[1734904474908,1.6403,181.02,180.89,21.12890776]
[1734904475109,2.86,181.01,180.89,21.12890776]
[1734904476511,2.7655,180.96,180.93,2.7657]
[1734904483116,2.86,181.0,180.93,2.7657]
[1734904484414,1.6056,181.03,180.92,21.12890776]
[1734904484720,1.6056,181.03,180.93,2.86]
[1734904484916,1.6056,181.03,180.96,2.7653]
[1734904485120,4.4656,181.03,180.96,2.7653]
[1734904486422,4.4656,181.03,180.93,1.7361]
[1734904486922,2.7652,180.98,180.94,2.7656]
[1734904488221,2.7652,180.98,180.93,1.7361]
[1734904488421,2.7652,180.98,180.95,2.7655]
[1734904489322,4.4656,181.03,180.93,1.7361]
[1734904489825,2.7646,181.01,180.98,2.7649]
[1734904490014,4.5671,181.04,180.93,1.7361]
[1734904490214,4.5671,181.04,180.93,3.371]
[1734904490917,2.7646,181.01,180.98,2.7649]
[1734904491922,2.7644,181.03,181.0,2.7647]
[1734904493418,2.7644,181.03,181.01,2.7646]
[1734904493618,2.7642,181.04,181.01,2.7646]
[1734904494124,87.96917832,181.05,181.02,2.7644]
[1734904494324,85.20517832,181.05,180.97,16.03861445]
[1734904495223,85.20517832,181.05,180.94,13.19861445]
[1734904496121,85.20517832,181.05,180.93,6.211]
[1734904496122,2.7645,181.02,180.97,2.7651]
[1734904496326,2.84,181.03,180.97,2.7651]
[1734904496926,2.7647,181.01,180.97,2.7651]
[1734904499025,2.7647,181.01,180.93,6.211]
[1734904499330,85.20517832,181.05,180.93,6.211]
[1734904499331,2.7645,181.02,180.99,2.7648]
[1734904500229,85.20517832,181.05,180.95,21.1253691]
[1734904500431,2.7642,181.04,181.01,2.7645]
[1734904501631,2.7643,181.03,181.01,2.7645]
[1734904503032,85.20517832,181.05,180.95,21.1253691]
[1734904503235,85.20517832,181.05,180.93,1.7361]
[1734904503433,1.5807,181.04,180.93,1.7361]
[1734904503633,2.84,181.03,180.93,1.7361]
[1734904503828,2.7652,180.97,180.93,1.7361]
[1734904504430,2.7652,180.97,180.93,4.5019]
[1734904505332,2.7654,180.96,180.93,4.5019]
[1734904506036,2.7652,180.97,180.93,4.5019]
[1734904506337,2.84,181.03,180.94,2.7655]
[1734904506537,2.84,181.03,180.93,1.7361]
[1734904507537,2.84,181.03,180.95,2.7654]
[1734904509438,2.765,180.99,180.95,2.7654]
[1734904510243,2.84,181.03,180.95,2.7654]
[1734904511639,2.84,181.03,180.93,1.7361]
[1734904511841,2.7653,180.97,180.93,1.7361]
[1734904512444,2.7653,180.97,180.93,4.5018]
[1734904513242,2.84,181.03,180.93,1.7361]
[1734904513445,2.7651,180.98,180.94,2.7656]
[1734904513939,2.7647,181.0,180.97,2.7652]
[1734904514238,85.20517832,181.05,180.93,1.7361]
[1734904514239,88.04517832,181.05,180.94,21.1253691]
[1734904514442,85.20517832,181.05,180.94,22.7635691]
[1734904514642,2.7642,181.04,181.0,2.7647]
[1734904516346,2.7642,181.04,181.01,2.7645]
[1734904516546,22.85950224,181.17,181.02,16.03500838]
[1734904516850,3.7249113,181.16,181.05,15.95890838]
[1734904517049,0.8849113,181.15,181.05,15.95890838]
[1734904517848,2.84,181.16,181.05,15.95890838]
[1734904518151,0.88458548,181.15,181.05,2.7639]
[1734904518447,2.84,181.16,181.06,2.7638]
[1734904518651,3.2979,181.19,181.05,21.1012058]
[1734904518947,3.2979,181.19,181.08,2.7635]
[1734904518948,2.7628,181.13,181.08,2.7635]
[1734904519149,7.44495789,181.19,181.07,2.84]
[1734904519346,2.84,181.18,181.08,21.1012058]
[1734904519550,3.2979,181.19,181.12,2.7629]
[1734904520258,3.2979,181.19,181.13,2.7626]
[1734904520854,3.2979,181.19,181.09,1.672]
[1734904522054,2.7624,181.16,181.11,2.763]
[1734904525450,6.1379,181.19,181.09,1.672]
[1734904525755,6.1379,181.19,181.07,2.84]
[1734904526156,6.1379,181.19,181.08,21.1012058]
[1734904526548,6.1379,181.19,181.05,21.1012058]
[1734904526755,21.98565013,181.18,181.03,1.737]
[1734904526956,21.1012058,181.15,180.99,23.9412058]
[1734904527156,2.7639,181.06,181.01,2.7645]
[1734904527452,2.84,181.09,180.99,23.9412058]
[1734904527656,2.84,181.08,180.99,21.1012058]
[1734904527857,2.7645,181.02,180.98,1.6224]
[1734904528058,2.84,181.08,180.98,1.6224]
[1734904528357,2.84,181.08,180.96,21.1012058]
[1734904529159,2.764,181.05,181.01,2.7646]
[1734904529554,2.84,181.08,181.01,2.7646]
[1734904529754,2.7639,181.06,181.01,2.7646]